Cogmind - Beta 15 @@@ ROGUE MODE // 2025.05.30 @ 17:56:55 Player: N.W.L. Result: Smashed by cave-in Performance ------------- Evolutions (6) 3000 Regions Visited (17) 3400 Robots Destroyed (394) 1970 Value Destroyed (13986) 13986 Prototype IDs (54) 1080 Alien Tech Used (1) 200 Bonus (4715) 4715 TOTAL SCORE: 28351 Bonus ------- Triggered High Security 500 High Alert Combat Kills 2914 Follower Combat Kills 20 Entered Garrisons 200 Acquired ECA 300 Met Zhirov 300 MAIN.C Attacked Warlord 500 Warlord Defense Kills 406 Friendly Fire -425 Cogmind --------- Core Integrity 0/1150 Matter 300/300 Energy 65/100 System Corruption 31% Temperature Cool (21) Movement Treading (70) Location -4/Warlord Parts ------- > --- POWER (2) -------- (None) > --- PROPULSION (5) --- Treaded Myomer-Impulse Exoskeleton > --- UTILITY (8) ------ Experimental Heat Sink > --- WEAPON (4) ------- (None) > --- INVENTORY (5) ---- Particle Accelerator Improved Reaction Control System Improved System Shield Dimensional Node Initializer Peak State ------------ > --- POWER ------------ Neutrino-Antimatter Core > --- PROPULSION ------- Treaded Myomer-Impulse Exoskeleton > --- UTILITY ---------- Armored Scrap Engine Experimental Heat Sink Large Storage Unit Enhanced Optical Array Advanced Targeting Computer Advanced Force Field Advanced Remote Shield > --- WEAPON ----------- Tiamat Missile Launcher Hvy. Thermic Quantum Construct/C Vibroblade > --- INVENTORY -------- Flexi-carbon Leg Advanced Heat Sink Experimental Heat Sink Experimental Heat Sink Encrypted Comm Array Improved Salvage Targeting Computer Precision Matter Filter Particle Accelerator Jamming Amplifier Improved Reaction Control System Advanced Force Field Dimensional Node Initializer Transdimensional Reconstructor Heavy Beamcaster [Rating: 141] Favorites ----------- Power Constructs Engine Improved Ion Engine Power Core Constructs Reactor Graviton Reactor Propulsion Constructs Treads Constructs Leg Cargo Legs Hover Unit Aerolev Unit Flight Unit Improved VTOL Module Utility Large Storage Unit Device Armored Scrap Engine Storage Large Storage Unit Processor Advanced Targeting Computer Hackware Hacking Suite Protection Reflective Plating Weapon Constructs Energy Gun Heavy Particle Gun Energy Cannon Constructs Ballistic Gun Enhanced Autogun Ballistic Cannon Hypervelocity Mass Driver Launcher Advanced EMP Blaster Special Weapon Mining Laser Impact Weapon Makeshift Hammer Slashing Weapon Vibroblade Build | -11 -10 -10 -10 -8 -8 -8 -6 -6 -5 -5 -5 -5 -4 -4 -4 -4 -4 ------- Run | Yrd Mat Min Sub Mat Sto Rec Fac Gar Fac Upp Upp Zhi Pro Fac Upp Upp War Slots Evolved 12 | . . . . 4 . . 4 . 2 . . . . 2 . . . Power 1 | . . . . . . . 1 . . . . . . . . . . Propulsion 3 | . . . . 1 . . 1 . 1 . . . . . . . . Utility 6 | . . . . 2 . . 2 . . . . . . 2 . . . Weapon 2 | . . . . 1 . . . . 1 . . . . . . . . Parts Attached 150 | 7 1 . 11 19 41 9 11 3 7 1 1 1 1 14 1 2 20 Power 13 | 1 . . 2 2 2 1 2 1 . . . . . . . . 2 Engine 8 | 1 . . 2 2 2 . 1 . . . . . . . . . . Core 4 | . . . . . . 1 . 1 . . . . . . . . 2 Reactor 1 | . . . . . . . 1 . . . . . . . . . . Propulsion 23 | 2 . . 1 2 13 2 . . 1 . . . . 1 . . 1 Treads 17 | 2 . . . . 12 1 . . . . . . . 1 . . 1 Leg 3 | . . . 1 1 . . . . 1 . . . . . . . . Wheel . | . . . . . . . . . . . . . . . . . . Hover 1 | . . . . . . 1 . . . . . . . . . . . Flight 2 | . . . . 1 1 . . . . . . . . . . . . Utility 68 | 2 1 . 2 5 12 6 9 2 3 1 1 1 1 9 1 1 11 Device 33 | 1 . . 1 2 4 4 4 1 1 . 1 1 1 6 . . 6 Storage 8 | 1 1 . . . 1 . 1 . 1 . . . . 1 1 . 1 Processor 8 | . . . . . . . 1 1 . 1 . . . 2 . 1 2 Hackware 5 | . . . . . 1 1 2 . 1 . . . . . . . . Protection 14 | . . . 1 3 6 1 1 . . . . . . . . . 2 Artifact . | . . . . . . . . . . . . . . . . . . Weapon 46 | 2 . . 6 10 14 . . . 3 . . . . 4 . 1 6 Energy Gun 18 | 1 . . 2 6 6 . . . 2 . . . . . . . 1 Energy Cannon 2 | . . . . . 1 . . . . . . . . . . . 1 Ballistic Gun 11 | 1 . . 3 . 4 . . . . . . . . 2 . 1 . Ballistic Cannon 6 | . . . . 2 . . . . . . . . . . . . 4 Launcher 5 | . . . . 2 2 . . . . . . . . 1 . . . Special Weapon 1 | . . . 1 . . . . . . . . . . . . . . Impact Weapon 1 | . . . . . 1 . . . . . . . . . . . . Slashing Weapon 2 | . . . . . . . . . 1 . . . . 1 . . . Piercing Weapon . | . . . . . . . . . . . . . . . . . . Special Melee Weapon . | . . . . . . . . . . . . . . . . . . Unidentified Prototypes 22 | . . . . 4 5 2 . . 3 . . 2 . 2 . . 4 Corrupted Parts 4 | . . . . . . 2 . . . . . . . . . . 2 System Corruption 25 | . . . . . . 8 . . . . . . . . . . 17 Parts Lost 54 | . . . 4 2 8 . 2 . . . 1 . . 7 3 . 27 Power 9 | . . . 1 1 2 . 1 . . . . . . . . . 4 Propulsion 8 | . . . . . 2 . . . . . 1 . . 1 . . 4 Utility 25 | . . . 1 1 4 . 1 . . . . . . 3 3 . 12 Weapon 12 | . . . 2 . . . . . . . . . . 3 . . 7 Highest Loss Streak 16 | . . . 2 1 3 . 1 . . . 1 . . 2 2 . 16 To Critical Strikes 2 | . . . . . 1 . . . . . . . . . . . 1 Average Backups 13 | 1 6 8 11 14 14 12 14 13 13 12 12 14 15 12 14 14 13 Power . | . 1 2 1 . . . . . . . . . . . . . . Propulsion 1 | . . . 4 4 3 . . 1 . . . . . . 1 1 . Utility 6 | . 3 4 3 1 2 5 8 8 9 9 8 9 11 7 9 9 9 Weapon 3 | . 2 2 2 7 8 5 4 3 3 1 1 1 1 1 . 1 . Tool/Special . | . . . . . . . . . . . . . . . . . . Unused Backups 83 | . . . 1 6 11 2 12 7 10 2 6 2 2 5 1 2 14 Power 3 | . . . . 1 1 . . . . . . 1 . . . . . Propulsion 20 | . . . . 1 2 1 4 4 2 . 1 1 . 1 1 . 2 Utility 31 | . . . 1 1 2 . 7 . 3 . 2 . 2 4 . 2 7 Weapon 26 | . . . . 3 6 1 1 3 5 2 3 . . . . . 2 Tool/Special 3 | . . . . . . . . . . . . . . . . . 3 Average Slot Usage (%) 67 | . 100 100 81 87 98 55 52 53 47 47 47 47 47 53 58 56 59 Engine 4 | . 14 14 11 8 8 3 5 . 2 . 2 4 . . . . . Reactor 1 | . . . . . . . . 5 1 . . . 5 5 5 . . Treads 8 | . 28 28 6 . 25 7 . . . . . . . 3 5 . 7 Leg 2 | . . . 8 15 . . . 2 2 . . . . . . 3 . Hover 1 | . . . . . . 6 5 . . . . . . . . . . Flight 1 | . . . . . . . . 1 2 5 5 5 5 1 . 1 . Device 13 | . 14 14 18 20 8 8 9 11 10 5 15 17 17 21 18 15 12 Storage 8 | . 14 14 11 8 13 9 7 6 5 5 5 5 5 5 5 10 5 Processor 3 | . . . . . . . 3 5 5 9 5 5 5 8 5 9 11 Hackware 1 | . . . . . . 1 9 6 5 6 . . . . . . . Protection 4 | . . . 1 9 14 4 . 1 . . . . . . . . 2 Energy Gun 3 | . 14 14 4 16 9 . . . . . . . . . . . . Energy Cannon 1 | . . . . . . 1 1 2 2 . 1 . 1 4 . 2 2 Ballistic Gun 4 | . 14 14 13 4 8 7 . . . . . . . . 9 . . Ballistic Cannon 2 | . . . . 3 . 2 4 3 2 4 3 5 3 . . 2 6 Launcher 1 | . . . . . 8 . . . . . . . . . 3 . . Peak Build Rating 141 | 7 8 8 29 48 48 46 83 82 98 92 97 97 96 112 113 123 141 Average Rating 62 | 5 7 8 21 44 32 34 66 75 82 89 91 93 95 101 103 110 115 On Entrance 62 | . 7 8 8 26 47 31 46 75 75 90 92 97 96 94 106 99 121 Naked Turns . | . . . . . . . . . . . . . . . . . . Heaviest Build 153 | 13 28 28 50 57 56 48 53 67 59 59 59 59 59 71 71 65 153 Greatest Support 161 | 40 40 40 55 75 75 63 69 80 110 110 110 97 53 97 97 161 161 Greatest Overweight (x) 17 | . . . . 2 17 6 1 1 1 . . 1 1 1 . . 1 Average Overweight (x) . | . . . . . . . . . . . . . 1 . . . . Largest Inventory Capacity 15 | 8 15 15 15 15 15 15 15 15 15 15 15 15 15 15 15 15 15 Average Capacity 14 | 6 9 15 15 15 15 15 15 15 15 15 15 15 15 13 15 15 14 Most Carried 15 | 4 8 13 15 15 15 15 15 15 15 15 15 15 15 15 15 15 15 Average Carried 13 | 1 6 10 14 14 14 12 14 13 14 12 12 14 14 12 14 14 13 Final Capacity 15 | 8 15 15 15 15 15 15 15 15 15 15 15 15 15 15 15 15 5 Final Carried 15 | 4 8 13 14 15 14 12 15 15 14 15 14 15 15 13 15 14 4 Scrap Engine Consumption 230 | . . . . . . 32 35 39 33 7 17 4 2 24 10 14 13 Constructs Created 5 | . . . . . . 3 1 . . . . . . . 1 . . Constructs Modified 97 | . . . . . . 10 14 19 13 3 10 2 2 10 3 9 2 Class Distribution -------------------- 43% | Construct 16% | Tank 14% | Scavenger-Tank 12% | Mutant 5% | Hacker-Construct 3% | Scavenger-Mutant Dominant Class ---------------- Mutant | -10/Materials Mutant | -10/Mines Mutant | -10/Subcaves Scavenger-Tank | -8/Materials Tank | -8/Storage Construct | -8/Recycling Construct | -6/Factory Construct | -6/Garrison Construct | -5/Factory Construct | -5/Upper Caves Construct | -5/Upper Caves Construct | -5/Zhirov Construct | -4/Proximity Caves Construct | -4/Factory Tank | -4/Upper Caves Construct | -4/Upper Caves Construct | -4/Warlord Resources | -11 -10 -10 -10 -8 -8 -8 -6 -6 -5 -5 -5 -5 -4 -4 -4 -4 -4 ----------- Run | Yrd Mat Min Sub Mat Sto Rec Fac Gar Fac Upp Upp Zhi Pro Fac Upp Upp War Matter Collected 8890 | 285 99 118 320 564 2093 467 215 178 171 131 440 132 264 1440 451 122 1400 Remotely 242 | . . . . . 242 . . . . . . . . . . . . Salvage Created 21015 | 95 99 76 538 1910 7849 565 1450 1343 1025 257 453 246 315 2527 581 239 1447 Parts 993 | 6 6 11 38 100 389 24 58 68 55 8 27 6 12 89 20 10 66 Haulers Intercepted 17 | . . . . 5 6 . 1 . 3 . . . . 2 . . . Recyclers Shooed 28 | . . . . 2 17 1 2 . . . . . . 6 . . . Parts Field Recycled . | . . . . . . . . . . . . . . . . . . Retrieved Matter . | . . . . . . . . . . . . . . . . . . Parts Self-Destructed 53 | . . . 8 . . . . . . 2 21 2 10 . 9 1 . Prevented 3 | . . . . . . . . . . 2 1 . . . . . . Kills | -11 -10 -10 -10 -8 -8 -8 -6 -6 -5 -5 -5 -5 -4 -4 -4 -4 -4 ------- Run | Yrd Mat Min Sub Mat Sto Rec Fac Gar Fac Upp Upp Zhi Pro Fac Upp Upp War Combat Hostiles Destroyed 248 | . 1 5 12 29 79 5 11 22 14 4 8 . 4 22 9 1 22 Melee 1 | . . . . . . . . . . . 1 . . . . . . Guns 83 | . 1 5 12 14 39 5 . . . . . . . 2 5 . . Cannons 96 | . . . . 4 . . 8 21 9 4 7 . 4 20 . 1 18 AOE 53 | . . . . 8 32 . 3 . 4 . . . . . 4 . 2 Classes Destroyed 25 | 2 1 1 3 7 4 . 2 . . . 1 . . 1 1 . 2 Worker 35 | . . . . 3 23 . 2 . . . . . . 7 . . . Builder 30 | . . . . 5 21 . 1 . 1 . . . . 2 . . . Tunneler 4 | 1 . . . 1 . . . . 2 . . . . . . . . Hauler 17 | . . . . 5 6 . 1 . 3 . . . . 2 . . . Recycler 53 | 1 1 . . 1 33 4 5 . 1 . . . . 7 . . . Mechanic 4 | . . . . . 2 . 1 . . . . . . 1 . . . Operator 5 | . . . . . 1 . 1 . 2 . . . . 1 . . . Turret 2 | . . . 2 . . . . . . . . . . . . . . Watcher 8 | . . . . 3 2 . 2 . . . . . . 1 . . . Swarmer 52 | . . 5 3 3 6 . 1 6 8 . 4 . . 10 4 . 2 Cutter 3 | . . . . . . . 3 . . . . . . . . . . Grunt 91 | . 1 . . 17 47 . 3 13 . 2 1 . 3 4 . . . Brawler 7 | . . . . 2 5 . . . . . . . . . . . . Duelist 5 | . . . . . 3 . . . . . . . . 1 1 . . Protector 6 | . . . . . 6 . . . . . . . . . . . . Sentry 33 | . . . . 6 12 4 2 1 3 1 1 . 1 . 1 1 . Demolisher 1 | . . . . . . . . . . . . . . . . . 1 Specialist 1 | . . . . . . . . . . . . . . . . . 1 Hunter 10 | . . . . 1 . . . 2 1 . 2 . . 2 2 . . Programmer 10 | . . . . . . . 2 . 2 1 . . . 4 1 . . Behemoth 2 | . . . . . . . . . . . . . . 1 . . 1 Cobbler 2 | . . . 2 . . . . . . . . . . . . . . Subdweller 10 | . . . 9 . . 1 . . . . . . . . . . . Samaritan 3 | . . . . . . . . . . . . . . . 1 2 . Surgeon 2 | . . . . . . . . . . . . . . . . . 2 Thug 10 | . . . . . 1 . . . . . . . . . . . 9 Savage 3 | . . . . . . . . . . . . . . . . . 3 Butcher 1 | . . . . . . . . . . . . . . . . . 1 Bouncer 1 | . . . . . . . . . . . . . . . . . 1 Mutant 4 | . . . . . . . . . . . 1 . . . . . 3 Commander 1 | . . . . . . . . . . . . . . . . . 1 Best Kill Streak 16 | 2 2 5 4 7 16 2 6 5 7 1 4 . 3 8 4 1 6 Combat Bots Only 12 | . 1 5 2 6 12 1 4 5 5 1 4 . 3 6 4 1 5 Max Kills in Single Turn 6 | 1 1 1 1 4 3 1 3 1 6 1 1 . 1 1 3 1 2 Gunslinging 1 | . . . . 1 . . . . . . . . . . . . . Exploded 4 | . . . . 4 3 . 3 . 4 . . . . . 3 . 1 Melee 1 | . . . . . . . . . . . 1 . . . . . . Uniques/NPCs Destroyed . | . . . . . . . . . . . . . . . . . . Combat | -11 -10 -10 -10 -8 -8 -8 -6 -6 -5 -5 -5 -5 -4 -4 -4 -4 -4 -------- Run | Yrd Mat Min Sub Mat Sto Rec Fac Gar Fac Upp Upp Zhi Pro Fac Upp Upp War Hostile Shots Fired 1700 | . 15 36 102 95 197 17 130 105 40 13 57 . 30 242 81 6 534 Missed 582 | . 7 6 40 26 54 3 43 43 21 3 23 . 12 79 23 1 198 Hits 1118 | . 8 30 62 69 143 14 87 62 19 10 34 . 18 163 58 5 336 Melee 21 | . . . . 1 8 . . . . . . . . 1 5 . 6 Projectile 1097 | . 8 30 62 68 135 14 87 62 19 10 34 . 18 162 53 5 330 AOE 7 | . . . . . . . 1 . . . . . . . . . 6 Critical Strikes 58 | . . . 2 2 9 1 4 1 . . 1 . 4 4 6 . 24 Part Disruptions 3 | . . . . . . . . . . . . . . . . . 3 Damage Taken 20088 | . 67 226 886 884 2161 195 1153 1282 446 126 620 . 401 2710 1030 168 7733 Core 2289 | . 19 58 135 85 159 13 104 387 14 . 65 . 46 256 89 . 859 Absorbed by Shields 1849 | . . . . 217 205 . 38 77 . . . . . 483 54 . 775 Ignored by Resistances 170 | . . . . . 151 19 . . . . . . . . . . . Regen/Repaired (Parts) 4720 | . . . . . 97 5 476 1084 235 43 296 45 231 840 420 690 258 Core Remaining (%) 59 | 100 . . 15 . . 53 . 42 . . . . 87 . . . . Volleys Fired 1050 | 5 7 12 73 70 305 34 67 87 51 10 27 7 15 146 31 12 91 Largest 3 | 2 2 2 2 3 3 3 1 1 1 1 1 1 1 3 2 1 3 Hottest 270 | 70 70 70 100 150 165 136 136 136 88 71 270 130 130 130 70 79 188 Shots Fired 1646 | 10 14 24 124 176 620 67 67 87 51 10 27 7 15 161 60 12 114 Gun 939 | 10 14 24 103 122 534 49 . . . . . . . 20 58 . 5 Cannon 604 | . . . . 43 19 18 67 87 51 10 27 7 15 141 . 12 107 Launcher 82 | . . . . 11 67 . . . . . . . . . 2 . 2 Special 21 | . . . 21 . . . . . . . . . . . . . . Kinetic 784 | 5 7 12 65 75 271 57 34 23 15 10 16 7 15 54 58 8 52 Thermal 667 | 5 7 12 59 15 261 7 33 64 35 . 11 . . 107 . 4 47 Explosive 8 | . . . . 4 . . . . . . . . . . 2 . 2 Electromagnetic 174 | . . . . 82 88 3 . . 1 . . . . . . . . Entropic 13 | . . . . . . . . . . . . . . . . . 13 Robot Hit Streak 22 | 4 3 2 21 17 22 14 13 13 10 6 9 10 11 16 20 9 10 Robot Miss Streak 7 | 2 2 3 2 7 5 2 4 2 2 1 3 . 1 5 3 1 7 Penetration Max 1 | . . . . . . . . . 1 . . 1 . 1 . . 1 Secondary Targets 10 | . . 1 3 1 4 . . . . . . . . 1 . . . Max Gunslinging Chain 1 | . . 1 1 1 1 . . . . . . . . 1 . . . Shots Hit Robots 987 | 5 7 10 82 111 358 36 35 40 29 8 20 7 12 124 41 10 52 Core Hits 535 | 3 4 5 31 74 226 13 22 23 12 4 9 2 3 42 25 5 32 Critical Kills 8 | . . . . . . . . . . . . . . . . 1 7 Critical Parts Destroyed 8 | . . . . 2 . . . . . . . . . . 1 . 5 Critical Strikes 39 | . . . 5 3 8 . 1 1 . . 1 . . 2 1 1 16 Burn 13 | . . . 4 . 8 . . . . . . . . 1 . . . Destroy 20 | . . . 1 2 . . . . . . . . . . 1 1 15 Blast 3 | . . . . 1 . . 1 1 . . . . . . . . . Sever 2 | . . . . . . . . . . . 1 . . 1 . . . Sunder 1 | . . . . . . . . . . . . . . . . . 1 Melee Attacks 15 | . . . . . 2 1 . . . . 3 . . 7 . . 2 Impact 3 | . . . . . 2 1 . . . . . . . . . . . Slashing 12 | . . . . . . . . . . . 3 . . 7 . . 2 Piercing . | . . . . . . . . . . . . . . . . . . Sneak Attacks 4 | . . . . . . . . . . . . . . 3 . . 1 Combat Hostiles . | . . . . . . . . . . . . . . . . . . Follow-up Attacks . | . . . . . . . . . . . . . . . . . . Damage Inflicted 45517 | 62 85 124 1285 3365 11587 720 3382 3109 3958 807 1575 765 993 8792 1340 466 3102 Guns 11749 | 62 85 124 1285 1853 6166 578 . . . . . . . 557 1016 . 23 Cannons 24485 | . . . . 435 325 142 2788 3109 3186 807 1452 765 993 7681 . 466 2336 Explosions 8292 | . . . . 1077 5068 . 594 . 772 . . . . . 313 . 468 Melee 878 | . . . . . . . . . . . 123 . . 542 . . 213 Ramming 113 | . . . . . 28 . . . . . . . . 12 11 . 62 Kinetic 16416 | 24 37 86 913 966 2865 562 1361 622 1063 807 847 765 993 2654 1016 259 576 Thermal 19976 | 38 48 38 372 375 4203 120 1538 2487 2774 . 605 . . 5584 . 207 1587 Explosive 1569 | . . . . 305 . . 483 . . . . . . . 313 . 468 Electromagnetic 6369 | . . . . 1719 4491 38 . . 121 . . . . . . . . Impact . | . . . . . . . . . . . . . . . . . . Slashing 878 | . . . . . . . . . . . 123 . . 542 . . 213 Piercing . | . . . . . . . . . . . . . . . . . . Entropic 196 | . . . . . . . . . . . . . . . . . 196 Highest Corruption 26 | . . . . . 4 12 2 2 . 1 1 1 1 4 5 5 26 Average Corruption 3 | . . . . . 2 4 1 2 . 1 1 1 1 2 4 5 17 Corruption Purged . | . . . . . . . . . . . . . . . . . . Corruption Blocked . | . . . . . . . . . . . . . . . . . . Effects 212 | . . . . . 12 56 15 14 . 2 11 1 10 16 20 13 42 Message Errors 43 | . . . . . 4 15 1 4 . . 2 . 1 3 4 . 9 Matter Fused 54 | . . . . . . 13 5 2 . 1 3 . 3 7 7 7 6 Heat Flow Errors 31 | . . . . . 4 10 3 2 . . . . 3 1 . 4 4 Energy Discharges 25 | . . . . . 1 9 2 3 . 1 2 1 1 1 1 . 3 Parts Rejected 2 | . . . . . 1 . 1 . . . . . . . . . . Parts Fused 1 | . . . . . . . . . . . . . . 1 . . . Data Loss (minor) 26 | . . . . . 1 4 1 2 . . 1 . 1 3 4 2 7 Data Loss (major) 10 | . . . . . . 2 1 1 . . 1 . 1 . 2 . 2 Misfires 3 | . . . . . . 1 . . . . . . . . 1 . 1 Alerts 6 | . . . . . 1 2 1 . . . 2 . . . . . . Misdirections 4 | . . . . . . . . . . . . . . . . . 4 Weapon Failures 7 | . . . . . . . . . . . . . . . 1 . 6 Overload Shots . | . . . . . . . . . . . . . . . . . . Overflow Damage 4005 | . . . . 20 109 . 504 292 943 198 125 164 178 1326 9 36 101 Projectiles 3374 | . . . . . 14 . 428 292 811 198 125 164 178 1106 . 36 22 Explosions 332 | . . . . 20 95 . 76 . 132 . . . . . 9 . . Melee 299 | . . . . . . . . . . . . . . 220 . . 79 Knockbacks 34 | . . . . 4 . . 1 3 3 3 . . 2 15 . . 3 Impact . | . . . . . . . . . . . . . . . . . . Kinetic 30 | . . . . 4 . . 1 3 2 3 . . 2 12 . . 3 Secondary 4 | . . . . . . . . . 1 . . . . 3 . . . Self-Inflicted Damage 626 | . . . . 56 329 . 139 63 . . . . . . . . 39 Shots 26 | . . . . 3 19 . 2 1 . . . . . . . . 1 Rammed 8 | . . . . . 1 . . . . . . . . 1 1 . 5 Targets Rammed 13 | . . . . . 6 . . . . . . . . 1 1 . 5 Kicked 5 | . . . . . 5 . . . . . . . . . . . . Crushed . | . . . . . . . . . . . . . . . . . . Highest Temperature 615 | 45 33 36 . 273 476 414 393 559 19 32 615 . 80 362 47 72 489 Average Temperature 110 | 23 12 13 . 75 87 130 128 127 11 12 230 . 54 192 47 45 170 Received Heat Transfer 3470 | . 6 . 120 333 806 96 336 338 27 9 45 . 162 126 54 18 994 Effects 37 | . . . . . 7 4 3 9 . . 4 . . 2 . . 8 Shutdowns 5 | . . . . . 1 1 . 2 . . 1 . . . . . . Energy Bleed 4 | . . . . . . . 1 . . . 2 . . . . . 1 Interference 13 | . . . . . 4 1 . 3 . . . . . . . . 5 Matter Decay 4 | . . . . . 1 1 1 . . . . . . 1 . . . Short Circuit 2 | . . . . . . 1 . . . . . . . 1 . . . Damage (minor) 4 | . . . . . 1 . 1 . . . 1 . . . . . 1 Damage (major) 3 | . . . . . . . . 2 . . . . . . . . 1 Damage (core) 2 | . . . . . . . . 2 . . . . . . . . . Siege Activations . | . . . . . . . . . . . . . . . . . . Martial Activations . | . . . . . . . . . . . . . . . . . . Shielding Activations . | . . . . . . . . . . . . . . . . . . Robots Disrupted . | . . . . . . . . . . . . . . . . . . Combat Hostiles . | . . . . . . . . . . . . . . . . . . Robots Corrupted 13 | . . . . 3 8 . . . 1 . . . . . . . 1 Combat Hostiles 13 | . . . . 3 8 . . . 1 . . . . . . . 1 Parts Fried 43 | . . . . 13 27 . . . 3 . . . . . . . . Impact Corruptions 2 | . . . . . . . . . 1 . . . . . . . 1 Robots Melted 2 | . . . . . . . . 1 . . . . . . . . 1 Combat Hostiles 2 | . . . . . . . . 1 . . . . . . . . 1 Parts Melted 19 | . . . . . 9 . . 2 2 . . . . . 2 . 4 Heat Transferred 18525 | 111 148 111 1370 475 7743 222 800 1429 1153 . 350 . . 3577 . 148 888 Parts Sabotaged . | . . . . . . . . . . . . . . . . . . Parts Stolen . | . . . . . . . . . . . . . . . . . . Parts Stripped . | . . . . . . . . . . . . . . . . . . Power Chain Reactions 44 | . . . . 4 40 . . . . . . . . . . . . Alert | -11 -10 -10 -10 -8 -8 -8 -6 -6 -5 -5 -5 -5 -4 -4 -4 -4 -4 ------- Run | Yrd Mat Min Sub Mat Sto Rec Fac Gar Fac Upp Upp Zhi Pro Fac Upp Upp War Maximum Alert Level 5 | . . . . 2 5 4 2 4 4 . . . . 2 . . . Low Security (%) 16 | 100 100 100 . 23 . . 13 . . . . . . 60 . . . Level 1 16 | . . . . 19 5 . 80 4 . . . . . 39 . . . Level 2 25 | . . . . 57 33 45 6 24 . . . . . . . . . Level 3 27 | . . . . . 26 53 . 31 86 . . . . . . . . Level 4 9 | . . . . . 15 1 . 39 13 . . . . . . . . Level 5 3 | . . . . . 13 . . . . . . . . . . . . High Security 1 | . . . . . 4 . . . . . . . . . . . . Max Security . | . . . . . . . . . . . . . . . . . . Sterilizations 1 | . . . . . 1 . . . . . . . . . . . . Peak Influence 1973 | 5 60 105 . 576 1973 1101 479 1522 1151 . . . . 399 . . . Initial 1100 | . . . . . 237 1100 346 320 798 . . . . . . . . Average 661 | . 11 29 . 344 980 773 269 936 903 . . . . 177 . . . Influence Increases 9048 | 10 65 135 160 1021 2581 140 914 1202 864 105 255 5 90 881 215 25 380 Destroy 0b10 Robot/C 4340 | . 20 100 100 580 1460 80 220 440 300 80 160 . 80 440 180 20 80 Destroy 0b10 Robot/NC 835 | 10 5 . . 90 470 20 65 10 45 . . 5 . 105 5 5 . Destroy Leader 830 | . 10 20 . 156 306 . 66 40 76 10 20 . 10 86 30 . . Allied During Kill 35 | . . . . . 3 . . . 32 . . . . . . . . Successful Hack 267 | . . . . 30 35 6 132 . 45 . . . . 19 . . . Select Force Hacks 90 | . 30 . . 30 . . 30 . . . . . . . . . . Disable Machine 615 | . . . . 15 120 30 180 90 105 . . . . 75 . . . Anti-Garrison Action 400 | . . . . . . . . 400 . . . . . . . . . Destroy Structure 576 | . . . . 45 142 4 91 132 96 . . . . 66 . . . Advance Influence 100 | . . . . . . . 100 . . . . . . . . . . Partial Spotted 30 | . . . . . . . . 15 . . . . . 15 . . . Lose Combat Pursuer 930 | . . 15 60 75 45 . 30 75 165 15 75 . . 75 . . 300 Influence Decreases 9211 | 10 65 100 195 457 1172 1856 1044 138 1258 568 541 384 90 486 545 90 212 Entered New Map 3838 | . . . 19 . 327 1204 342 138 724 418 127 379 . . 147 13 . Time Decay 4781 | 10 65 100 156 437 745 652 522 . 474 150 404 5 90 426 368 77 100 Lost Part 352 | . . . 20 20 80 . 20 . . . 10 . . 60 30 . 112 Lost Ally 90 | . . . . . 20 . 10 . 60 . . . . . . . . Purge Threat 150 | . . . . . . . 150 . . . . . . . . . . Squads Dispatched 47 | . 3 . . 6 14 . 6 . 13 . . . . 5 . . . Investigation 7 | . 2 . . 3 . . 1 . 1 . . . . . . . . Extermination 6 | . . . . . . . 2 . 2 . . . . 2 . . . Reinforcement 17 | . 1 . . 2 6 . 2 . 3 . . . . 3 . . . Assault 14 | . . . . 1 8 . 1 . 4 . . . . . . . . Garrison 3 | . . . . . . . . . 3 . . . . . . . . Intercept . | . . . . . . . . . . . . . . . . . . Searches Triggered . | . . . . . . . . . . . . . . . . . . Construction Impeded 8 | . . . . 1 6 . . . . . . . . 1 . . . Haulers Reinforced 3 | . . . . . . . . . 1 . . . . 2 . . . Active Scanning Responses . | . . . . . . . . . . . . . . . . . . Cargo Convoy Interrupts . | . . . . . . . . . . . . . . . . . . Stealth | -11 -10 -10 -10 -8 -8 -8 -6 -6 -5 -5 -5 -5 -4 -4 -4 -4 -4 --------- Run | Yrd Mat Min Sub Mat Sto Rec Fac Gar Fac Upp Upp Zhi Pro Fac Upp Upp War Distress Signals 13 | . . . . 4 5 . 1 . . . . . . 1 . . 2 Communications Jammed 10 | . . . . . . . . . . . . . . 10 . . . Distress Signals 10 | . . . . . . . . . . . . . . 10 . . . Times Spotted 440 | . 7 6 16 39 100 4 28 27 31 6 14 . 4 40 8 1 109 Peak Tracking Total 28 | . 6 3 3 7 10 2 6 5 6 2 6 . 3 6 4 1 28 Tactical Retreats 42 | . . 1 3 4 2 . 2 4 5 1 1 . . 4 . . 15 Traps | -11 -10 -10 -10 -8 -8 -8 -6 -6 -5 -5 -5 -5 -4 -4 -4 -4 -4 ------- Run | Yrd Mat Min Sub Mat Sto Rec Fac Gar Fac Upp Upp Zhi Pro Fac Upp Upp War Traps Triggered 19 | . 1 . . 2 4 . . 2 1 . . . . . . 1 8 Indirectly . | . . . . . . . . . . . . . . . . . . Trap Hack Attempts . | . . . . . . . . . . . . . . . . . . Triggered . | . . . . . . . . . . . . . . . . . . Disarmed . | . . . . . . . . . . . . . . . . . . Reprogrammed . | . . . . . . . . . . . . . . . . . . Reused 2 | . . . 2 . . . . . . . . . . . . . . Traps Extracted . | . . . . . . . . . . . . . . . . . . Installed 2 | . . . 2 . . . . . . . . . . . . . . Triggered . | . . . . . . . . . . . . . . . . . . Most Traps Carried 3 | . . 3 3 1 . . . . . . . . . . . . . Machines | -11 -10 -10 -10 -8 -8 -8 -6 -6 -5 -5 -5 -5 -4 -4 -4 -4 -4 ---------- Run | Yrd Mat Min Sub Mat Sto Rec Fac Gar Fac Upp Upp Zhi Pro Fac Upp Upp War Machines Disabled 58 | . . . 2 1 10 2 12 15 7 . 1 . . 5 . . 3 Max in Single Turn 4 | . . . 1 1 1 1 4 2 4 . 1 . . 1 . . 1 Garrison Access 2 | . . . . 1 1 . . . . . . . . . . . . Garrison Relay 4 | . . . . . . . . 4 . . . . . . . . . Phase Generator 1 | . . . . . . . . 1 . . . . . . . . . Machines Repaired . | . . . . . . . . . . . . . . . . . . Machines Dismantled . | . . . . . . . . . . . . . . . . . . Machines Sabotaged . | . . . . . . . . . . . . . . . . . . Overloaded Fab Kills . | . . . . . . . . . . . . . . . . . . Hacking | -11 -10 -10 -10 -8 -8 -8 -6 -6 -5 -5 -5 -5 -4 -4 -4 -4 -4 --------- Run | Yrd Mat Min Sub Mat Sto Rec Fac Gar Fac Upp Upp Zhi Pro Fac Upp Upp War Machines Accessed 74 | . 1 . 1 8 12 5 18 2 10 . 1 4 . 6 . 2 4 Terminals 41 | . . . . 6 9 . 12 2 8 . . . . 3 . 1 . Fabricators 4 | . . . . . . . 2 . 2 . . . . . . . . Repair Stations 2 | . . . . . 1 . 1 . . . . . . . . . . Recycling Units 10 | . 1 . . 1 1 4 1 . . . . . . 2 . . . Scanalyzers 2 | . . . . . . . 1 . . . . . . 1 . . . Garrison Access 3 | . . . . 1 1 . 1 . . . . . . . . . . Total Hacks 197 | . 2 . 1 24 22 28 42 4 34 . 1 17 . 16 . 2 4 Successful 122 | . 1 . 1 11 11 14 34 2 17 . 1 17 . 7 . 2 4 Failed 75 | . 1 . . 13 11 14 8 2 17 . . . . 9 . . . Catastrophic 5 | . 1 . . . 2 1 . . 1 . . . . . . . . Database Lockouts . | . . . . . . . . . . . . . . . . . . Manual 97 | . 1 . . 17 10 11 26 . 25 . . . . 6 . 1 . Terminals 101 | . . . . 16 17 . 31 4 25 . . . . 7 . 1 . Fabricators 13 | . . . . . . . 4 . 9 . . . . . . . . Repair Stations 4 | . . . . . 2 . 2 . . . . . . . . . . Recycling Units 37 | . 2 . . 4 2 20 2 . . . . . . 7 . . . Scanalyzers 3 | . . . . . . . 1 . . . . . . 2 . . . Garrison Access 7 | . . . . 4 1 . 2 . . . . . . . . . . Terminal Hacks 57 | . . . 1 1 5 8 10 2 4 . 1 17 . 2 . 2 4 Record 14 | . . . . . . 6 . . . . . 5 . . . 1 2 Part Schematic 4 | . . . . . . . . . . . . 4 . . . . . Robot Analysis 5 | . . . . 1 . . . . . . . 4 . . . . . Prototype ID Bank 7 | . . . . . . . 2 . . . . 4 . 1 . . . Open Door 8 | . . . . . 4 . . . . . 1 . . . . 1 2 Branch Access Points 3 | . . . . . . . 1 . 1 . . . . 1 . . . Emergency Access Points 1 | . . . . . . . . 1 . . . . . . . . . Machine Index 1 | . . . . . . . 1 . . . . . . . . . . Terminal Index 2 | . . . . . 1 . . . 1 . . . . . . . . Alert Level 1 | . . . . . . . 1 . . . . . . . . . . Unreport Threat 1 | . . . . . . . 1 . . . . . . . . . . Locate Traps 1 | . . . . . . . . . 1 . . . . . . . . Patrol Status 2 | . . . . . . . 2 . . . . . . . . . . Zone Layout 3 | . . . . . . . 2 . 1 . . . . . . . . Garrison Registry 1 | . . . . . . . . 1 . . . . . . . . . Proto ID Catalog 1 | . . . 1 . . . . . . . . . . . . . . Release Object 2 | . . . . . . 2 . . . . . . . . . . . Fabricator Hacks 5 | . . . . . . . 2 . 3 . . . . . . . . Network Status 2 | . . . . . . . 1 . 1 . . . . . . . . Build 3 | . . . . . . . 1 . 2 . . . . . . . . Repair Station Hacks 4 | . . . . . 2 . 2 . . . . . . . . . . Scan Component 2 | . . . . . 1 . 1 . . . . . . . . . . Repair 2 | . . . . . 1 . 1 . . . . . . . . . . Recycling Unit Hacks 8 | . . . . 1 . 3 1 . . . . . . 3 . . . Retrieve Matter 1 | . . . . . . . . . . . . . . 1 . . . Retrieve Components 7 | . . . . 1 . 3 1 . . . . . . 2 . . . Scanalyzer 1 | . . . . . . . . . . . . . . 1 . . . Insert Component 1 | . . . . . . . . . . . . . . 1 . . . Garrison Access Hacks 3 | . . . . 1 1 . 1 . . . . . . . . . . Unlock Access 1 | . . . . . . . 1 . . . . . . . . . . Seal Access 2 | . . . . 1 1 . . . . . . . . . . . . Unauthorized Hacks 44 | . 1 . . 8 3 3 18 . 10 . . . . 1 . . . Terminals 27 | . . . . 7 2 . 14 . 4 . . . . . . . . Assimilate 2 | . . . . . . . 2 . . . . . . . . . . Botnet 3 | . . . . 1 . . 2 . . . . . . . . . . Operators 3 | . . . . 1 . . 1 . 1 . . . . . . . . Skim 19 | . . . . 5 2 . 9 . 3 . . . . . . . . Fabricators 7 | . . . . . . . 1 . 6 . . . . . . . . Report 2 | . . . . . . . . . 2 . . . . . . . . Prioritize 1 | . . . . . . . . . 1 . . . . . . . . Liberate 2 | . . . . . . . . . 2 . . . . . . . . Haulers 2 | . . . . . . . 1 . 1 . . . . . . . . Repair Stations . | . . . . . . . . . . . . . . . . . . Recycling Units 8 | . 1 . . 1 1 3 1 . . . . . . 1 . . . Monitor 1 | . . . . . . . . . . . . . . 1 . . . Reject 2 | . . . . . . 2 . . . . . . . . . . . Recyclers 1 | . . . . . . . 1 . . . . . . . . . . Mask 2 | . . . . . 1 1 . . . . . . . . . . . Tunnel 2 | . 1 . . 1 . . . . . . . . . . . . . Scanalyzers 1 | . . . . . . . 1 . . . . . . . . . . Extract 1 | . . . . . . . 1 . . . . . . . . . . Garrison Access 1 | . . . . . . . 1 . . . . . . . . . . Decoy 1 | . . . . . . . 1 . . . . . . . . . . Data Cores Recovered 1 | . . . . . . . . . . . . . . 1 . . . Used . | . . . . . . . . . . . . . . . . . . Hacking Detections 52 | . 1 . . 7 9 4 15 1 9 . . . . 6 . . . Full Trace Events 3 | . . . . . . 2 . . 1 . . . . . . . . Feedback Events . | . . . . . . . . . . . . . . . . . . Feedback Blocked . | . . . . . . . . . . . . . . . . . . Robot Schematics Acquired . | . . . . . . . . . . . . . . . . . . Robots Built 4 | . . . . . . . . . 4 . . . . . . . . Authchips . | . . . . . . . . . . . . . . . . . . Time 134 | . . . . . . . . . 134 . . . . . . . . Total Robot Build Rating 16 | . . . . . . . . . 16 . . . . . . . . Part Schematics Acquired 11 | . . . . . . . 7 . . . . 4 . . . . . Parts Built 3 | . . . . . . . 1 . 2 . . . . . . . . Authchips . | . . . . . . . . . . . . . . . . . . Time 208 | . . . . . . . 102 . 106 . . . . . . . . Total Part Build Rating 20 | . . . . . . . 8 . 12 . . . . . . . . Parts Repaired 1 | . . . . . 1 . . . . . . . . . . . . Time 88 | . . . . . 38 . 50 . . . . . . . . . . Parts Recycled . | . . . . . . . . . . . . . . . . . . Recycled Matter . | . . . . . . . . . . . . . . . . . . Retrieved Matter 130 | . . . . . . . . . . . . . . 130 . . . Retrieved Components 39 | . . . . 6 . 20 2 . . . . . . 11 . . . Parts Scanalyzed . | . . . . . . . . . . . . . . . . . . Part Schematics Acquired . | . . . . . . . . . . . . . . . . . . Parts Damaged . | . . . . . . . . . . . . . . . . . . Bothacking | -11 -10 -10 -10 -8 -8 -8 -6 -6 -5 -5 -5 -5 -4 -4 -4 -4 -4 ------------ Run | Yrd Mat Min Sub Mat Sto Rec Fac Gar Fac Upp Upp Zhi Pro Fac Upp Upp War Used RIF Installer . | . . . . . . . . . . . . . . . . . . Robots Hacked . | . . . . . . . . . . . . . . . . . . Non-combat . | . . . . . . . . . . . . . . . . . . Combat . | . . . . . . . . . . . . . . . . . . Robot Hacks Applied . | . . . . . . . . . . . . . . . . . . Relay Couplers Released 21 | . . . . . . . . 17 . . . . . 4 . . . Machine Destruction 17 | . . . . . . . . 17 . . . . . . . . . Programmers 4 | . . . . . . . . . . . . . . 4 . . . Fabnet Peak Effective % . | . . . . . . . . . . . . . . . . . . Robots Rewired 1 | . . . . . . . . . . . . . . . . . 1 Allies Hacked . | . . . . . . . . . . . . . . . . . . Hacks Repelled . | . . . . . . . . . . . . . . . . . . Allies | -11 -10 -10 -10 -8 -8 -8 -6 -6 -5 -5 -5 -5 -4 -4 -4 -4 -4 -------- Run | Yrd Mat Min Sub Mat Sto Rec Fac Gar Fac Upp Upp Zhi Pro Fac Upp Upp War Total Allies 9 | . . . . . 2 . 2 . 4 . . . . . . . 1 Largest Group 4 | . . . . . 2 . 1 . 4 . . . . . . . 1 Highest-Rated Group 64 | . . . . . 62 . 26 . 48 . . . . . . . 64 Highest-Rated Ally 64 | . . . . . 31 . 26 . 12 . . . . . . . 64 Initial Warlord ECA Mod 76 | . . . . . . . . . 9 9 9 9 8 8 8 8 8 Total Orders . | . . . . . . . . . . . . . . . . . . Ally Attacks 43 | . . . . . 11 . . . 32 . . . . . . . . Total Damage 536 | . . . . . 162 . . . 374 . . . . . . . . Kills 1 | . . . . . . . . . 1 . . . . . . . . Allies Corrupted . | . . . . . . . . . . . . . . . . . . Allies Melted . | . . . . . . . . . . . . . . . . . . Intel | -11 -10 -10 -10 -8 -8 -8 -6 -6 -5 -5 -5 -5 -4 -4 -4 -4 -4 ------- Run | Yrd Mat Min Sub Mat Sto Rec Fac Gar Fac Upp Upp Zhi Pro Fac Upp Upp War Active Infowar (turns) 8200 | 35 347 489 1060 719 1551 . 1241 . . . . . . 1403 308 . 1047 Optics 2016 | . . . . . . . 969 . . . . . . . . . 1047 IFF 659 | . . . . . . . . . . . . . . 416 243 . . Terrain 224 | . . . . 224 . . . . . . . . . . . . . Seismic 4156 | 35 347 489 1060 502 1551 . . . . . . . . 172 . . . Decoding 360 | . . . . . . . . . . . . . . 360 . . . Jamming 1235 | . . . . . . . 272 . . . . . . 898 65 . . Robot Analysis Total 5 | . . . . 1 . . . . . . . 4 . . . . . Derelict Logs Recovered 11 | . . 2 2 . . . . . . 1 1 . 2 . 2 1 . Drone Launches . | . . . . . . . . . . . . . . . . . . Drone Recoveries . | . . . . . . . . . . . . . . . . . . Decoded 0b10 Intel 6 | . . . . . . . . . . . . . . 6 . . . Traps 6 | . . . . . . . . . . . . . . 6 . . . Exploration | -11 -10 -10 -10 -8 -8 -8 -6 -6 -5 -5 -5 -5 -4 -4 -4 -4 -4 ------------- Run | Yrd Mat Min Sub Mat Sto Rec Fac Gar Fac Upp Upp Zhi Pro Fac Upp Upp War Turns Passed 20891 | 111 347 489 1291 1258 4092 2407 1454 1421 1214 309 961 338 1201 1408 852 566 1172 Spaces Moved 12083 | 54 189 279 720 677 1342 818 1277 1124 1222 342 836 163 642 577 478 443 900 Core 11 | 7 . . . . 1 3 . . . . . . . . . . . Treads 4272 | 47 189 279 157 . 1272 363 . 159 . . . . . 416 478 12 900 Legs 2514 | . . . 563 677 69 . 35 519 378 . . . . . . 273 . Wheels . | . . . . . . . . . . . . . . . . . . Hover 1775 | . . . . . . 452 1200 123 . . . . . . . . . Flight 3511 | . . . . . . . 42 323 844 342 836 163 642 161 . 158 . Fastest Speed 50 | 50 160 160 130 130 130 123 53 59 72 76 76 120 144 70 125 70 70 Average Speed 124 | 145 160 160 136 135 161 165 90 100 85 76 101 190 179 167 138 104 85 Slowest Speed 900 | 160 160 160 160 280 900 350 167 215 146 76 120 194 194 231 166 125 144 Overloaded Moves 26 | . . . . . . . 26 . . . . . . . . . . Propulsion Burnouts . | . . . . . . . . . . . . . . . . . . Robots Hopped 4 | . . . . . . . . . 3 . . . . 1 . . . Potential Cave-ins 34 | . . . . . . . . . . . . . . . . . 34 Cave-ins Triggered 3 | . . . . . . . . . . . . . . . . . 3 Exploration Rate (%) 58 | 4 28 65 55 63 96 96 34 81 36 56 83 60 73 21 61 61 80 Regions Visited 17 Branch Regions 11 Pre-discovered Areas 12 | . 1 1 2 1 . . 3 . . 1 . 3 . . . . . Known Exits Taken 4 | . . . . 1 . . 1 . 1 . . . . 1 . . . Unknown Exits Taken 12 | 1 1 1 1 . 1 1 . . . 1 1 1 1 . 1 1 . Scrap Searched 17 | . . 1 1 . . . . . . 2 5 . 3 . 1 4 . Spaces Dug 67 | . . . 2 . 3 1 7 8 8 1 3 . . 5 . . 29 Terrain Destroyed 694 | . . . 2 43 120 2 104 158 46 4 12 . 10 33 60 4 96 Melee 3 | . . . . . 2 1 . . . . . . . . . . . Projectile 212 | . . . 2 6 5 1 23 26 19 4 12 . 10 33 23 4 44 AOE 477 | . . . . 37 113 . 81 132 27 . . . . . 36 . 51 Terrain Rammed . | . . . . . . . . . . . . . . . . . . Walls Destroyed . | . . . . . . . . . . . . . . . . . . Machines Disabled . | . . . . . . . . . . . . . . . . . . Actions | -11 -10 -10 -10 -8 -8 -8 -6 -6 -5 -5 -5 -5 -4 -4 -4 -4 -4 --------- Run | Yrd Mat Min Sub Mat Sto Rec Fac Gar Fac Upp Upp Zhi Pro Fac Upp Upp War Total 16555 | 73 220 298 864 881 2854 1841 1528 1353 1336 379 917 182 676 816 611 538 1188 Wait 2774 | 4 19 3 27 78 1056 942 126 102 25 21 28 4 14 43 89 70 123 Move 12056 | 53 188 278 719 676 1341 817 1276 1123 1215 341 835 162 641 574 477 442 898 Hop 4 | . . . . . . . . . 3 . . . . 1 . . . Pick Up 179 | 4 4 5 10 15 27 9 24 14 12 4 11 3 2 13 6 5 11 Fast Attach 48 | 7 . . 3 5 6 2 3 . 4 . . 1 . 4 . 1 12 Attach 50 | . . . 6 7 5 3 5 3 1 . 1 . . 5 3 1 10 Detach 29 | . . . 4 4 1 3 2 3 3 . 1 . . 1 . 1 6 Swap 118 | . 1 . 8 12 57 9 6 3 3 1 2 3 1 11 . . 1 Drop 183 | . 1 . 10 14 41 21 19 14 18 2 9 2 3 10 4 6 9 Fire 1050 | 5 7 12 73 70 305 34 67 87 51 10 27 7 15 146 31 12 91 Melee 15 | . . . . . 2 1 . . . . 3 . . 7 . . 2 Ram . | . . . . . . . . . . . . . . . . . . Kick 5 | . . . . . 5 . . . . . . . . . . . . Crush 8 | . . . . . 1 . . . . . . . . 1 1 . 5 Escape Stasis 14 | . . . . . 7 . . 4 1 . . . . . . . 2 Rewire 19 | . . . 1 . . . . . . . . . . . . . 18 Trap 2 | . . . 2 . . . . . . . . . . . . . . Miscellaneous 1 | . . . 1 . . . . . . . . . . . . . . Route ------- -11/Scrapyard -10/Materials (discovered 2 exits: [*Min x2]) -10/Mines (discovered 4 exits: [*Mat x2] / [*Exi] / *Sub) -10/Subcaves (discovered 3 exits: *Mat x2 / *Rec) -8/Materials (discovered 3 exits: Fac / *Sto x2) -8/Storage (discovered 2 exits: *Fac / *Rec) -8/Recycling -6/Factory (discovered 5 exits: Fac x2 / Low x2 / Gar) -6/Garrison (discovered 3 exits: *Fac x3) -5/Factory (discovered 4 exits: *Fac x2 / *Upp x2) -5/Upper Caves -5/Upper Caves (discovered 2 exits: *Fac / *Zhi) -5/Zhirov -4/Proximity Caves -4/Factory (discovered 5 exits: *Res / *Upp x2 / Ext x2) -4/Upper Caves -4/Upper Caves (discovered 2 exits: *Res / *War) -4/Warlord (discovered 1 exit: [*Pro]) History --------- Turn | Location | Event 17 | -11/Scrapyard | Discovered new exit (range 15) 112 | -11/Scrapyard | Entered Materials 195 | -10/Materials | Discovered new exit (range 14) 208 | -10/Materials | Discovered new exit (range 9) 303 | -10/Materials | Build established: Mutant 459 | -10/Materials | Entered Mines 509 | -10/Mines | Found a hidden stash of uninstalled traps 573 | -10/Mines | Discovered new exit (range 7) 821 | -10/Mines | Learned location of Mines (-9) 833 | -10/Mines | Deemed a non-threat by the Exiles lab entrance 833 | -10/Mines | Discovered new exit (range 5) 868 | -10/Mines | Discovered new exit (range 3) 943 | -10/Mines | Discovered new exit (range 4) 948 | -10/Mines | Entered Subcaves 949 | -10/Subcaves | Approached by a straggling Scientist 959 | -10/Subcaves | Learned location of Zion (-6) 1071 | -10/Subcaves | Discovered new exit (range 11) 1200 | -10/Subcaves | Visited 4L-MR0's lab 1221 | -10/Subcaves | Found Cargo Legs 1229 | -10/Subcaves | Attached Cargo Legs, gained temporary slots: Utility x2 1447 | -10/Subcaves | Discovered new exit (range 11) 1675 | -10/Subcaves | Core integrity fell below 50% 1788 | -10/Subcaves | A swath of the cavern ceiling suddenly collapsed 1978 | -10/Subcaves | Build established: Scavenger-Mutant 2111 | -10/Subcaves | A Subdweller sparked back to life 2120 | -10/Subcaves | Ambushed by Subdweller buried in earth 2162 | -10/Subcaves | Core integrity fell below 20% 2170 | -10/Subcaves | Found Meta Core 2215 | -10/Subcaves | Discovered new exit (range 15) 2239 | -10/Subcaves | Entered Materials 2239 | -8/Materials | Evolved 4 slots: Propulsion x1, Utility x2, Weapon x1 2240 | -8/Materials | Identified exit to Storage 2865 | -8/Materials | Build established: Tank 3210 | -8/Materials | Identified exit to Factory 3285 | -8/Materials | Learned Storage stockpile data 3309 | -8/Materials | Build established: Scavenger-Tank 3342 | -8/Materials | Discovered exit to Storage (range 10) 3349 | -8/Materials | Learned Storage emergency access door positions 3403 | -8/Materials | Learned Factory emergency access door positions 3439 | -8/Materials | First assault squad dispatched 3448 | -8/Materials | Learned Factory emergency access door positions 3484 | -8/Materials | Learned Factory trap positions 3497 | -8/Materials | Entered Storage 3651 | -8/Storage | Lost 3 parts (1n2u) 3714 | -8/Storage | Destroyed 7 combat bots 4083 | -8/Storage | Repaired Assault Cannon 4679 | -8/Storage | Discovered exit to Factory (range 14) 5038 | -8/Storage | Met a pair of Derelict thieves 5097 | -8/Storage | First assault squad dispatched 5182 | -8/Storage | Destroyed 12 combat bots 5347 | -8/Storage | Build established: Tank 6401 | -8/Storage | Destroyed 7 combat bots 7393 | -8/Storage | High security lockdown imminent 7395 | -8/Storage | Sterilization system engaged 7395 | -8/Storage | Non-combat units ordered to evacuate 7495 | -8/Storage | Combat units ordered to evacuate 7554 | -8/Storage | Discovered new exit (range 15) 7589 | -8/Storage | Entered Recycling 7590 | -8/Recycling | Joined Warlord attack on 0b10 via Recycling 7650 | -8/Recycling | Lost 3 allies 7675 | -8/Recycling | Build established: Scavenger-Tank 7873 | -8/Recycling | Discovered new exit (range 15) 8224 | -8/Recycling | Entered Scraplab 8231 | -8/Recycling | Found Prototype Device 8231 | -8/Recycling | Identified Scrap Engine 8577 | -8/Recycling | Build established: Mutant 9068 | -8/Recycling | Build established: Construct 9103 | -8/Recycling | Attached Meta Core, gained temporary slots: Propulsion, Utility, Weapon 9965 | -8/Recycling | System corruption reached 10% 9996 | -8/Recycling | Entered Factory 9996 | -6/Factory | Evolved 4 slots: Power x1, Propulsion x1, Utility x2 9997 | -6/Factory | Loaded intel: 103 trap records 10084 | -6/Factory | Lost 4 allies 10826 | -6/Factory | Fabricated Graviton Reactor (x1) 10890 | -6/Factory | Identified exit to Lower Caves 10987 | -6/Factory | Learned Extension emergency access door positions 11029 | -6/Factory | Build established: Hacker-Construct 11030 | -6/Factory | Learned Factory emergency access door positions 11061 | -6/Factory | Learned Extension emergency access door positions 11089 | -6/Factory | Identified exit to Factory 11090 | -6/Factory | Learned 2 Upper Caves zone layouts 11091 | -6/Factory | Learned location of Lower Caves (-6) 11097 | -6/Factory | Learned location of Upper Caves (-4) 11112 | -6/Factory | Learned location of 1 exit from Lower Caves 11136 | -6/Factory | Learned location of Archives (-4) 11323 | -6/Factory | Identified exit to Garrison 11343 | -6/Factory | Found Hvy. Reflective Plating 11396 | -6/Factory | First assault squad dispatched 11450 | -6/Factory | Entered Garrison 11506 | -6/Garrison | Triggered checkpoint 11518 | -6/Garrison | Garrison Relay disabled 11669 | -6/Garrison | Discovered exit to Factory (range 78) 11669 | -6/Garrison | Discovered exit to Factory (range 61) 11669 | -6/Garrison | Discovered exit to Factory (range 57) 11732 | -6/Garrison | Triggered checkpoint 11869 | -6/Garrison | Garrison Relay disabled 11871 | -6/Garrison | Build established: Construct 12005 | -6/Garrison | Triggered checkpoint 12067 | -6/Garrison | Core integrity fell below 50% 12138 | -6/Garrison | Garrison Relay disabled 12261 | -6/Garrison | Phase Generator disabled 12368 | -6/Garrison | Triggered checkpoint 12775 | -6/Garrison | Triggered checkpoint 12828 | -6/Garrison | Triggered checkpoint 12871 | -6/Garrison | Entered Factory 12871 | -5/Factory | Evolved 2 slots: Propulsion x1, Weapon x1 13099 | -5/Factory | Fabricated S-27 Virus (x4) 13310 | -5/Factory | Fabricated Adv. Shield Generator (x2) 13391 | -5/Factory | Build established: Commander-Construct 13492 | -5/Factory | Discovered new exit (range 15) 13527 | -5/Factory | P-70 Sage assimilated allied Virus 6d 13738 | -5/Factory | Garrison activated, responded to threat 13771 | -5/Factory | First assault squad dispatched 13771 | -5/Factory | Discovered new exit (range 5) 13818 | -5/Factory | Build established: Construct 13833 | -5/Factory | Discovered new exit (range 10) 13952 | -5/Factory | Identified exit to Upper Caves 14085 | -5/Factory | Entered Upper Caves 14107 | -5/Upper Caves | Met a Warlord Commander 14108 | -5/Upper Caves | Learned location of Warlord (-4) 14109 | -5/Upper Caves | Warlord Commander delivered Encrypted Comm Array 14112 | -5/Upper Caves | Found Encrypted Comm Array 14131 | -5/Upper Caves | Learned 4 Factory zone layouts 14232 | -5/Upper Caves | Attracted the attention of an 0b10 checkpoint 14319 | -5/Upper Caves | Spotted B-75 Beast 14350 | -5/Upper Caves | Discovered new exit (range 15) 14394 | -5/Upper Caves | Entered another Upper Caves area 14409 | -5/Upper Caves | Discovered new exit (range 5) 14562 | -5/Upper Caves | Learned 8 Factory zone layouts 14660 | -5/Upper Caves | Encountered a Warlord checkpoint 14835 | -5/Upper Caves | Attracted the attention of an 0b10 checkpoint 15081 | -5/Upper Caves | Discovered new exit (range 7) 15345 | -5/Upper Caves | Found Alien Artifact 15355 | -5/Upper Caves | Entered Zhirov 15355 | -5/Zhirov | Discovered new exit (range 3) 15384 | -5/Zhirov | Met Zhirov 15421 | -5/Zhirov | Learned location of Testing (-2) 15421 | -5/Zhirov | Learned location of Command (-1) 15439 | -5/Zhirov | Zhirov requested help retrieving the SGEMP Prototype 15470 | -5/Zhirov | Found Alien Artifact 15470 | -5/Zhirov | Identified Integrated Reactor 15470 | -5/Zhirov | Installed Integrated Reactor, increased core energy generation (+10) 15503 | -5/Zhirov | Found Alien Artifact 15693 | -5/Zhirov | Entered Proximity Caves 15856 | -4/Proximity Caves | Received a Behemoth hack from an annoying Tinkerer 16140 | -4/Proximity Caves | Learned Research terminal intel 16614 | -4/Proximity Caves | Attracted the attention of an 0b10 checkpoint 16625 | -4/Proximity Caves | Discovered new exit (range 15) 16894 | -4/Proximity Caves | Entered Factory 16894 | -4/Factory | Evolved 2 slots: Utility x2 16895 | -4/Factory | Identified exit to Research 17056 | -4/Factory | Spotted B-86 Titan 17085 | -4/Factory | Destroyed B-86 Titan 17201 | -4/Factory | Identified exit to Upper Caves 17201 | -4/Factory | Identified exit to Extension 17585 | -4/Factory | Identified Dimensional Node Initializer 18302 | -4/Factory | Entered Upper Caves 18486 | -4/Upper Caves | Build established: Mutant 18514 | -4/Upper Caves | Attracted the attention of an 0b10 checkpoint 18675 | -4/Upper Caves | Learned Research stockpile data 18744 | -4/Upper Caves | Discovered new exit (range 10) 18755 | -4/Upper Caves | Learned Research emergency access door positions 18822 | -4/Upper Caves | Build established: Tank 19154 | -4/Upper Caves | Entered another Upper Caves area 19156 | -4/Upper Caves | Attracted the attention of an 0b10 checkpoint 19249 | -4/Upper Caves | Discovered exit to Research (range 16) 19373 | -4/Upper Caves | Build established: Construct 19593 | -4/Upper Caves | Discovered new exit (range 10) 19720 | -4/Upper Caves | Entered Warlord 19746 | -4/Warlord | System corruption cleaned by Quarantine Array 19804 | -4/Warlord | Attacked by Warlord forces 19812 | -4/Warlord | Destroyed VG-PK4(g) 19962 | -4/Warlord | Warlord's base attacked by MAIN.C 20038 | -4/Warlord | Found Prototype Hackware 20042 | -4/Warlord | Found Prototype Processor 20087 | -4/Warlord | Spotted GB-7WJ(B) 20116 | -4/Warlord | Spotted 9H-5NU(g) 20121 | -4/Warlord | Spotted Z3-XUQ(B) 20125 | -4/Warlord | Crushed by falling debris 20198 | -4/Warlord | Discovered new exit (range 9) 20270 | -4/Warlord | Spotted B-90 Cyclops 20293 | -4/Warlord | Warlord forces counterattacked 20294 | -4/Warlord | Core integrity fell below 50% 20315 | -4/Warlord | Found Corrupted Prototype Ballistic Cannon 20315 | -4/Warlord | Identified Hvy. Autocannon 20316 | -4/Warlord | System corruption reached 10% 20326 | -4/Warlord | Lost 4 parts (1p1n2u) 20637 | -4/Warlord | Warlord base infiltrated, sounded retreat 20684 | -4/Warlord | Found Prototype Energy Cannon 20687 | -4/Warlord | Found Prototype Energy Cannon 20788 | -4/Warlord | Spotted Striker 20793 | -4/Warlord | Spotted B-86 Titan 20806 | -4/Warlord | Spotted Striker 20810 | -4/Warlord | Destroyed B-86 Titan 20819 | -4/Warlord | Spotted Striker 20826 | -4/Warlord | Spotted Executioner 20837 | -4/Warlord | Core integrity fell below 20% 20851 | -4/Warlord | Identified Vortex Driver 20864 | -4/Warlord | Crushed by falling debris 20893 | -4/Warlord | Crushed by falling debris 20893 | -4/Warlord | Smashed by cave-in Last Messages --------------- 20882_ System corrupted: Component data lost. 20883_ Vortex penetrates Earth. 20890_ Vortex penetrates S-27 Virus. 20890_ S-27 Virus destroyed. 20890_ S-27 Virus suffers critical hit (Sunder). 20890_ S-27 Virus Autogun ripped off. 20890_ S-27 Virus destroyed. 20892_ Vortex penetrates Earth. 20893_ The unstable cave ceiling collapses. 20893_ Autogun crushed. 20893_ The unstable cave ceiling collapses. 20893_ Crushed by falling debris. 20893_ Treaded Myomer-Impulse Exoskeleton destroyed. 20893_ Treaded Myomer-Impulse Exoskeleton core remains intact and functional. 20893_ System corrupted by crushing effect (+1). 20893_ Vortex Driver destroyed. 20893_ System corrupted by crushing effect (+2). 20893_ Exp. Heat Sink destroyed. 20893_ System corrupted by crushing effect (+2). Map ----- +----------------------------------------------------+ | | | | | | | | | | | | | | | ?????????????????????????????????????????????????? | | ?????????????????????????????????????????????????? | | ?????????????????????????????????????????????????? | | ?????????????????????????????????????????????????? | | ?????????????????????????????????????????????????? | | ?????????????????????????????????????????????????? | | ?????????????????????????????????????????????????? | | ?????????????????????????????????????????????????? | | ?????????????????????????????????????????????????? | | ?????????????????????????????????????????????????? | | ?????????????????????????????????????????????????? | | ?????????????????????????????????????????????????? | | ?????????????????????????????????????????#####???? | | ????????????????????????????????????????## #???? | | ??????????????????????????# ???????????## ???? | | ??????????????????????????? ?????????##